fUSD/lending_fUSD_20240425
["ID","MTS","AMOUNT","RATE_DAILY","PERIOD"]
[323544658,1714080650269,-500.0,0.00011232,2]
[323544659,1714080650278,-389.01607131,0.00011232,2]
[323544660,1714080650287,-2386.26,0.00011232,2]
[323544661,1714080650297,-500.0,0.00011232,2]
[323544662,1714080650306,-1647.79,0.00011232,2]
[323544663,1714080650315,-500.0,0.00011232,2]
[323544664,1714080650324,-2185.12,0.00011232,2]
[323544665,1714080650333,-776.59,0.00011232,2]
[323544666,1714080650343,-500.0,0.00011232,2]
[323544667,1714080650352,-500.0,0.00011232,2]
[323544668,1714080650361,-500.0,0.00011232,2]
[323544669,1714080650371,-500.0,0.00011232,2]
[323544670,1714080650381,-500.0,0.00011232,2]
[323544671,1714080650391,-1418.4,0.00011232,2]
[323544672,1714080650400,-500.0,0.00011232,2]
[323544673,1714080650409,-12524.16,0.00011232,2]
[323544674,1714080650419,-500.0,0.00011232,2]
[323544675,1714080650428,-1640.7,0.00011232,2]
[323544676,1714080650438,-834.26,0.00011232,2]
[323544677,1714080650447,-500.0,0.00011232,2]
[323544678,1714080650457,-500.0,0.00011232,2]
[323544679,1714080650466,-360.15966028,0.00011232,2]
[323544680,1714080650476,-500.0,0.00011232,2]
[323544681,1714080650486,-500.0,0.00011232,2]
[323544682,1714080650496,-500.0,0.00011232,2]
[323544683,1714080650506,-184.35,0.00011232,2]
[323544684,1714080650518,-2149.82,0.00011232,2]
[323544685,1714080650528,-500.0,0.00011232,2]
[323544686,1714080650537,-2225.49,0.00011232,2]
[323544687,1714080650548,-500.0,0.00011232,2]
[323544688,1714080650558,-500.0,0.00011232,2]
[323544689,1714080650568,-3310.47,0.00011232,2]
[323544690,1714080650578,-500.0,0.00011232,2]
[323544691,1714080650588,-736.51,0.00011232,2]
[323544692,1714080650599,-1159.51,0.00011232,2]
[323544693,1714080650609,-500.0,0.00011232,2]
[323544694,1714080650619,-500.0,0.00011232,2]
[323544695,1714080650628,-500.0,0.00011232,2]
[323544696,1714080650638,-2668.16,0.00011232,2]
[323544697,1714080650647,-746.14,0.00011232,2]
[323544698,1714080650657,-2716.71,0.00011232,2]
[323544699,1714080650666,-500.0,0.00011232,2]
[323544700,1714080650676,-500.0,0.00011232,2]
[323544701,1714080650685,-500.0,0.00011232,2]
[323544702,1714080650695,-500.0,0.00011232,2]
[323544703,1714080650704,-630.93,0.00011232,2]
[323544704,1714080650714,-500.0,0.00011232,2]
[323544705,1714080650724,-500.0,0.00011232,2]
[323544706,1714080650733,-1366.68,0.00011232,2]
[323544707,1714080650743,-1628.53,0.00011232,2]
[323544708,1714080650752,-657.7,0.00011232,2]
[323544709,1714080650762,-2570.45,0.00011232,2]
[323544710,1714080650772,-500.0,0.00011232,2]
[323544711,1714080650781,-1656.95,0.00011232,2]
[323544712,1714080650790,-500.0,0.00011232,2]
[323544713,1714080650800,-500.0,0.00011232,2]
[323544714,1714080650809,-763.84,0.00011232,2]
[323544715,1714080650820,-936.27,0.00011232,2]
[323544716,1714080650829,-937.43,0.00011232,2]
[323544717,1714080650839,-500.0,0.00011232,2]
[323544718,1714080650849,-19843.31,0.00011232,2]
[323544719,1714080650858,-500.0,0.00011232,2]
[323544720,1714080650868,-757.44,0.00011232,2]
[323544721,1714080650878,-2946.07,0.00011232,2]
[323544722,1714080650888,-3824.28,0.00011232,2]
[323544723,1714080650897,-8720.88,0.00011232,2]
[323544724,1714080650906,-910.21,0.00011232,2]
[323544725,1714080650916,-500.0,0.00011232,2]
[323544726,1714080650925,-501.67935095,0.00011232,2]
[323544727,1714080650934,-478.61149268,0.00011232,2]
[323544728,1714080650944,-712.96,0.00011232,2]
[323544729,1714080650953,-500.0,0.00011232,2]
[323544730,1714080650963,-238.56991093,0.00011232,2]
[323544731,1714080650972,-3945.49,0.00011232,2]
[323544732,1714080650981,-500.0,0.00011232,2]
[323544733,1714080650990,-500.0,0.00011232,2]
[323544734,1714080650999,-500.0,0.00011232,2]
[323544735,1714080651010,-710.77,0.00011232,2]
[323544736,1714080651019,-500.0,0.00011232,2]
[323544737,1714080651029,-1258.76,0.00011232,2]
[323544738,1714080651039,-1246.27,0.00011232,2]
[323544739,1714080651048,-500.0,0.00011232,2]
[323544740,1714080651057,-1283.91,0.00011232,2]
[323544741,1714080651067,-902.68,0.00011232,2]
[323544742,1714080651077,-500.0,0.00011232,2]
[323544743,1714080651086,-1335.71,0.00011232,2]
[323544744,1714080651095,-2358.04,0.00011232,2]
[323544745,1714080651105,-2067.13,0.00011232,2]
[323544746,1714080651114,-5704.72,0.00011232,2]
[323544747,1714080651123,-500.0,0.00011232,2]
[323544748,1714080651133,-500.0,0.00011232,2]
[323544749,1714080651143,-500.0,0.00011232,2]
[323544750,1714080651153,-500.0,0.00011232,2]
[323544751,1714080651162,-500.0,0.00011232,2]
[323544752,1714080651171,-500.0,0.00011232,2]
[323544753,1714080651181,-708.39,0.00011232,2]
[323544754,1714080651191,-620.87,0.00011232,2]
[323544755,1714080651201,-1042.68,0.00011232,2]
[323544756,1714080651210,-1148.81,0.00011232,2]
[323544757,1714080651220,-918.53,0.00011232,2]
[323544758,1714080651230,-864.23,0.00011232,2]
[323544759,1714080651239,-500.0,0.00011232,2]
[323544760,1714080651248,-508.19,0.00011232,2]
[323544761,1714080651258,-1110.31,0.00011232,2]
[323544762,1714080651267,-895.22,0.00011232,2]
[323544763,1714080651276,-500.0,0.00011232,2]
[323544764,1714080651286,-1782.03,0.00011232,2]
[323544765,1714080651296,-1268.69,0.00011232,2]
[323544766,1714080651305,-3409.74,0.00011232,2]
[323544767,1714080651315,-500.0,0.00011232,2]
[323544768,1714080651325,-5291.88,0.00011232,2]
[323544769,1714080651334,-4048.42,0.00011232,2]
[323544770,1714080651345,-500.0,0.00011232,2]
[323544771,1714080651355,-1248.38,0.00011232,2]
[323544772,1714080651365,-924.37,0.00011232,2]
[323544773,1714080651374,-1387.42,0.00011232,2]
[323544774,1714080651384,-848.96,0.00011232,2]
[323544775,1714080651395,-540.79968734,0.00011232,2]
[323544776,1714080651405,-4000.28,0.00011232,2]
[323544777,1714080651415,-500.0,0.00011232,2]
[323544778,1714080651424,-532.83,0.00011232,2]
[323544779,1714080651435,-500.0,0.00011232,2]
[323544780,1714080651444,-1399.75,0.00011232,2]
[323544781,1714080651454,-680.73,0.00011232,2]
[323544782,1714080651462,-719.22,0.00011232,2]
[323544783,1714080651473,-1327.22,0.00011232,2]
[323544784,1714080651484,-500.0,0.00011232,2]
[323544785,1714080651494,-500.0,0.00011232,2]
[323544786,1714080651504,-1935.44,0.00011232,2]
[323544787,1714080651517,-653.71,0.00011232,2]
[323544788,1714080651527,-500.0,0.00011232,2]
[323544789,1714080651537,-500.0,0.00011232,2]
[323544790,1714080651547,-2632.01,0.00011232,2]
[323544791,1714080651559,-500.0,0.00011232,2]
[323544792,1714080651568,-500.0,0.00011232,2]
[323544793,1714080651579,-2791.77,0.00011232,2]
[323544794,1714080651588,-500.0,0.00011232,2]
[323544795,1714080651598,-616.15,0.00011232,2]
[323544796,1714080651608,-637.02,0.00011232,2]
[323544797,1714080651619,-2007.13,0.00011232,2]
[323544798,1714080651631,-547.73345443,0.00011232,2]
[323544799,1714080651642,-500.0,0.00011232,2]
[323544800,1714080651654,-760.56,0.00011232,2]
[323544801,1714080651665,-1507.65,0.00011232,2]
[323544802,1714080651676,-1029.34,0.00011232,2]
[323544803,1714080651685,-500.0,0.00011232,2]
[323544804,1714080651696,-500.0,0.00011232,2]
[323544805,1714080651707,-500.0,0.00011232,2]
[323544806,1714080651718,-500.0,0.00011232,2]
[323544807,1714080651729,-500.35,0.00011232,2]
[323544808,1714080651741,-500.0,0.00011232,2]
[323544809,1714080651753,-500.0,0.00011232,2]
[323544810,1714080651764,-500.0,0.00011232,2]
[323544811,1714080651775,-500.0,0.00011232,2]
[323544812,1714080651786,-500.0,0.00011232,2]
[323544813,1714080651797,-6288.41,0.00011232,2]
[323544814,1714080651808,-3879.23,0.00011232,2]
[323544815,1714080651820,-500.0,0.00011232,2]
[323544816,1714080651830,-500.0,0.00011232,2]
[323544817,1714080651840,-500.0,0.00011232,2]
[323544818,1714080651850,-422.59211036,0.00011232,2]
[323544819,1714080651861,-2519.04,0.00011232,2]
[323544820,1714080651871,-864.19,0.00011232,2]
[323544821,1714080651881,-500.0,0.00011232,2]
[323544822,1714080651892,-856.53,0.00011232,2]
[323544823,1714080651902,-500.0,0.00011232,2]
[323544824,1714080651912,-500.0,0.00011232,2]
[323544825,1714080651923,-500.0,0.00011232,2]
[323544826,1714080651934,-3702.09,0.00011232,2]
[323544827,1714080651946,-630.95,0.00011232,2]
[323544828,1714080651956,-500.0,0.00011232,2]
[323544829,1714080651968,-500.0,0.00011232,2]
[323544830,1714080651978,-500.0,0.00011232,2]
[323544831,1714080651990,-1737.92,0.00011232,2]
[323544832,1714080652000,-1303.57,0.00011232,2]
[323544833,1714080652012,-3277.12,0.00011232,2]
[323544834,1714080652022,-795.74,0.00011232,2]
[323544835,1714080652032,-500.0,0.00011232,2]
[323544836,1714080652044,-1859.25,0.00011232,2]
[323544837,1714080652053,-983.89,0.00011232,2]
[323544838,1714080652063,-540.52,0.00011232,2]
[323544839,1714080652073,-575.21,0.00011232,2]
[323544840,1714080652083,-500.0,0.00011232,2]
[323544841,1714080652095,-500.0,0.00011232,2]
[323544842,1714080652105,-555.98,0.00011232,2]
[323544843,1714080652115,-9250.43733274,0.00011406,2]
[323544844,1714080652125,-358.9104,0.00011406,2]
[323544845,1714080652134,-243.77698425,0.00011496,2]
[323544846,1714080652144,-967.65652118,0.00011505,2]
[323544847,1714080652154,-500.0,0.00011505,2]
[323544848,1714080652163,-249.7320373,0.00011505,2]
[323544849,1714080652173,-500.0,0.00011505,2]
[323544850,1714080652183,-9250.43733269,0.00011506,2]
[323544851,1714080652193,-1193.78,0.00011506,2]
[323544852,1714080652203,-482.86120483,0.00011506,2]
[323544853,1714080652371,-408.5,0.00011506,2]
[323544854,1714080652381,-1181.38,0.00011506,2]
[323544855,1714080652391,-500.0,0.00011506,2]
[323544856,1714080652401,-500.0,0.00011506,2]
[323544857,1714080652411,-500.0,0.00011506,2]
[323544858,1714080652420,-530.5,0.00011506,2]
[323544859,1714080652430,-500.0,0.00011506,2]
[323544860,1714080652440,-500.0,0.00011506,2]
[323544861,1714080652450,-450.85159659,0.00011506,2]
[323544862,1714080652460,-500.0,0.00011506,2]
[323544863,1714080652470,-500.0,0.00011506,2]
[323544864,1714080652479,-636.92,0.00011506,2]
[323544865,1714080652488,-576.72,0.00011506,2]
[323544866,1714080652498,-500.0,0.00011506,2]
[323544867,1714080652509,-280.88,0.00011506,2]
[323544868,1714080652521,-500.0,0.00011506,2]
[323544869,1714080652530,-157.08,0.00011506,2]
[323544870,1714080652540,-500.0,0.00011506,2]
[323544871,1714080652551,-500.0,0.00011506,2]
[323544872,1714080652561,-500.0,0.00011506,2]
[323544873,1714080652571,-609.97461919,0.00011506,2]
[323544874,1714080652580,-1233.89,0.00011506,2]
[323544875,1714080652591,-500.0,0.00011506,2]
[323544876,1714080652602,-500.0,0.00011506,2]
[323544877,1714080652613,-1207.27,0.00011506,2]
[323544878,1714080652624,-500.0,0.00011506,2]
[323544879,1714080652635,-500.0,0.00011506,2]
[323544880,1714080652647,-500.0,0.00011506,2]
[323544881,1714080652657,-500.0,0.00011506,2]
[323544882,1714080652669,-500.0,0.00011506,2]
[323544883,1714080652679,-500.0,0.00011506,2]
[323544884,1714080652689,-568.11,0.00011506,2]
[323544885,1714080652699,-500.0,0.00011506,2]
[323544886,1714080652710,-500.0,0.00011506,2]
[323544887,1714080652720,-500.0,0.00011506,2]
[323544888,1714080652732,-500.0,0.00011506,2]
[323544889,1714080652743,-500.0,0.00011506,2]
[323544890,1714080652754,-500.0,0.00011506,2]
[323544891,1714080652764,-500.0,0.00011506,2]
[323544892,1714080652775,-500.0,0.00011506,2]
[323544893,1714080652785,-500.0,0.00011506,2]
[323544894,1714080652795,-500.0,0.00011506,2]
[323544895,1714080652805,-500.0,0.00011506,2]
[323544896,1714080652814,-500.0,0.00011506,2]
[323544897,1714080652825,-500.0,0.00011506,2]
[323544898,1714080652835,-500.0,0.00011506,2]
[323544899,1714080652847,-511.75518359,0.00011506,2]
[323544900,1714080652859,-500.0,0.00011506,2]
[323544901,1714080652869,-500.0,0.00011506,2]
[323544902,1714080652879,-651.15,0.00011506,2]
[323544903,1714080652889,-500.0,0.00011506,2]
[323544904,1714080652899,-500.0,0.00011506,2]
[323544905,1714080652910,-1061.56,0.00011506,2]
[323544906,1714080652920,-1329.59,0.00011506,2]
[323544907,1714080652930,-266.22373312,0.00011506,2]
[323544908,1714080652940,-1320.34,0.00011506,2]
[323544909,1714080652950,-500.0,0.00011506,2]
[323544910,1714080652960,-500.0,0.00011506,2]
[323544911,1714080652970,-500.0,0.00011506,2]
[323544912,1714080652979,-500.0,0.00011506,2]
[323544913,1714080652990,-500.0,0.00011506,2]
[323544914,1714080653001,-152.79611102,0.00011506,2]
[323544915,1714080653012,-500.0,0.00011506,2]
[323544916,1714080653022,-1297.11,0.00011506,2]
[323544917,1714080653032,-1228.53,0.00011506,2]
[323544918,1714080653042,-500.0,0.00011506,2]
[323544919,1714080653052,-500.0,0.00011506,2]
[323544920,1714080653062,-500.0,0.00011506,2]
[323544921,1714080653072,-500.0,0.00011506,2]
[323544922,1714080653083,-500.0,0.00011506,2]
[323544923,1714080653092,-500.0,0.00011506,2]
[323544924,1714080653102,-341.17180317,0.00011506,2]
[323544925,1714080653112,-500.0,0.00011506,2]
[323544926,1714080653122,-500.0,0.00011506,2]
[323544927,1714080653132,-500.0,0.00011506,2]
[323544928,1714080653141,-500.0,0.00011506,2]
[323544929,1714080653151,-500.0,0.00011506,2]
[323544930,1714080653160,-500.0,0.00011506,2]
[323544931,1714080653170,-500.0,0.00011506,2]
[323544932,1714080653179,-500.0,0.00011506,2]
[323544933,1714080653189,-500.0,0.00011506,2]
[323544934,1714080653199,-500.0,0.00011506,2]
[323544935,1714080653209,-500.0,0.00011506,2]
[323544936,1714080653219,-500.0,0.00011506,2]
[323544937,1714080653229,-500.0,0.00011506,2]
[323544938,1714080653239,-1365.75,0.00011506,2]
[323544939,1714080653249,-211.32257274,0.00011506,2]
[323544940,1714080653259,-1169.91,0.00011506,2]
[323544941,1714080653269,-500.0,0.00011506,2]
[323544942,1714080653278,-500.0,0.00011506,2]
[323544943,1714080653287,-500.0,0.00011506,2]
[323544944,1714080653298,-446.12315396,0.00011506,2]
[323544945,1714080653307,-500.0,0.00011506,2]
[323544946,1714080653316,-500.0,0.00011506,2]
[323544947,1714080653325,-500.0,0.00011506,2]
[323544948,1714080653335,-500.0,0.00011506,2]
[323544949,1714080653345,-500.0,0.00011506,2]
[323544950,1714080653355,-554.96,0.00011506,2]
[323544951,1714080653364,-500.0,0.00011506,2]
[323544952,1714080653373,-500.0,0.00011506,2]
[323544953,1714080653383,-707.07,0.00011506,2]
[323544954,1714080653395,-500.0,0.00011506,2]
[323544955,1714080653405,-500.0,0.00011506,2]
[323544956,1714080653414,-2475.92,0.00011506,2]
[323544957,1714080653423,-1059.5,0.00011506,2]
[323544958,1714080653434,-525.94,0.00011506,2]
[323544959,1714080653444,-1285.93,0.00011506,2]
[323544960,1714080653453,-500.0,0.00011506,2]
[323544961,1714080653462,-252.43129084,0.00011506,2]
[323544962,1714080653471,-720.83,0.00011506,2]
[323544963,1714080653481,-503.88142211,0.00011506,2]
[323544964,1714080653490,-500.0,0.00011506,2]
[323544965,1714080653500,-500.0,0.00011506,2]
[323544966,1714080653512,-500.0,0.00011506,2]
[323544967,1714080653524,-500.0,0.00011506,2]
[323544968,1714080653533,-500.0,0.00011506,2]
[323544969,1714080653544,-980.09,0.00011506,2]
[323544970,1714080653553,-660.63,0.00011506,2]
[323544971,1714080653562,-500.0,0.00011506,2]
[323544972,1714080653572,-1585.97,0.00011506,2]
[323544973,1714080653581,-500.0,0.00011506,2]
[323544974,1714080653592,-500.0,0.00011506,2]
[323544975,1714080653603,-571.58,0.00011506,2]
[323544976,1714080653612,-500.0,0.00011506,2]
[323544977,1714080653622,-500.0,0.00011506,2]
[323544978,1714080653631,-485.43670855,0.00011506,2]
[323544979,1714080653640,-1418.95,0.00011506,2]
[323544980,1714080653649,-500.0,0.00011506,2]
[323544981,1714080653658,-500.0,0.00011506,2]
[323544982,1714080653668,-500.0,0.00011506,2]
[323544983,1714080653677,-521.57,0.00011506,2]
[323544984,1714080653686,-1325.54,0.00011506,2]
[323544985,1714080653695,-500.0,0.00011506,2]
[323544986,1714080653704,-533.92894551,0.00011506,2]
[323544987,1714080653714,-500.0,0.00011506,2]
[323544988,1714080653725,-272.62916283,0.00011506,2]
[323544989,1714080653734,-500.0,0.00011506,2]
[323544990,1714080653744,-500.0,0.00011506,2]
[323544991,1714080653753,-500.0,0.00011506,2]
[323544992,1714080653763,-500.0,0.00011506,2]
[323544993,1714080653772,-500.0,0.00011506,2]
[323544994,1714080653781,-206.14962084,0.00011506,2]
[323544995,1714080653790,-500.0,0.00011506,2]
[323544996,1714080653799,-500.0,0.00011506,2]
[323544997,1714080653809,-392.22512777,0.00011506,2]
[323544998,1714080653818,-500.0,0.00011506,2]
[323544999,1714080653827,-1164.66,0.00011506,2]
[323545000,1714080653836,-455.15339235,0.00011506,2]
[323545001,1714080653846,-540.93,0.00011506,2]
[323545002,1714080653856,-1311.39,0.00011506,2]
[323545003,1714080653865,-1005.63,0.00011506,2]
[323545004,1714080653874,-458.58,0.00011506,2]
[323545005,1714080653883,-182.73339476,0.00011506,2]
[323545006,1714080653891,-638.07,0.00011506,2]
[323545007,1714080653901,-182.41658102,0.00011506,2]
[323545008,1714080653911,-619.56,0.00011506,2]
[323545009,1714080653920,-500.0,0.00011506,2]
[323545010,1714080653929,-500.0,0.00011506,2]
[323545011,1714080653938,-500.0,0.00011506,2]
[323545012,1714080653947,-500.0,0.00011506,2]
[323545013,1714080653957,-500.0,0.00011506,2]
[323545014,1714080653966,-1213.04,0.00011506,2]
[323545015,1714080653975,-500.0,0.00011506,2]
[323545016,1714080653984,-320.84429768,0.00011506,2]
[323545017,1714080653993,-500.0,0.00011506,2]
[323545018,1714080654002,-544.66,0.00011506,2]
[323545019,1714080654011,-500.0,0.00011506,2]
[323545020,1714080654020,-500.0,0.00011506,2]
[323545021,1714080654030,-500.0,0.00011506,2]
[323545022,1714080654039,-500.0,0.00011506,2]
[323545023,1714080654049,-901.52,0.00011506,2]
[323545024,1714080654058,-500.0,0.00011506,2]
[323545025,1714080654067,-500.0,0.00011506,2]
[323545026,1714080654077,-500.0,0.00011506,2]
[323545027,1714080654086,-500.0,0.00011506,2]
[323545028,1714080654097,-525.94,0.00011506,2]
[323545029,1714080654108,-500.0,0.00011506,2]
[323545030,1714080654118,-500.0,0.00011506,2]
[323545031,1714080654127,-500.0,0.00011506,2]
[323545032,1714080654138,-500.0,0.00011506,2]
[323545033,1714080654147,-500.0,0.00011506,2]
[323545034,1714080654157,-154.24927232,0.00011506,2]
[323545035,1714080654168,-500.0,0.00011506,2]
[323545036,1714080654178,-500.0,0.00011506,2]
[323545037,1714080654187,-1182.76,0.00011506,2]
[323545038,1714080654196,-500.0,0.00011506,2]
[323545039,1714080654205,-500.0,0.00011506,2]
[323545040,1714080654214,-500.0,0.00011506,2]
[323545041,1714080654223,-500.0,0.00011506,2]
[323545042,1714080654233,-500.0,0.00011506,2]
[323545043,1714080654242,-1996.25,0.00011506,2]
[323545044,1714080654251,-500.0,0.00011506,2]
[323545045,1714080654260,-500.0,0.00011506,2]
[323545046,1714080654269,-500.0,0.00011506,2]
[323545047,1714080654279,-525.78,0.00011506,2]
[323545048,1714080654288,-1476.4,0.00011506,2]
[323545049,1714080654297,-500.0,0.00011506,2]
[323545050,1714080654307,-500.0,0.00011506,2]
[323545051,1714080654316,-500.0,0.00011506,2]
[323545052,1714080654325,-620.2,0.00011506,2]
[323545053,1714080654336,-500.0,0.00011506,2]
[323545054,1714080654345,-500.0,0.00011506,2]
[323545055,1714080654356,-500.0,0.00011506,2]
[323545056,1714080654365,-880.43,0.00011506,2]
[323545057,1714080654374,-500.0,0.00011506,2]
[323545058,1714080654383,-675.03,0.00011506,2]
[323545059,1714080654393,-500.0,0.00011506,2]
[323545060,1714080654402,-500.0,0.00011506,2]
[323545061,1714080654411,-1103.98,0.00011506,2]
[323545062,1714080654422,-500.0,0.00011506,2]
[323545063,1714080654431,-1165.81,0.00011506,2]
[323545064,1714080654441,-500.0,0.00011506,2]
[323545065,1714080654451,-1249.78,0.00011506,2]
[323545066,1714080654460,-500.0,0.00011506,2]
[323545067,1714080654469,-500.0,0.00011506,2]
[323545068,1714080654478,-500.0,0.00011506,2]
[323545069,1714080654488,-500.0,0.00011506,2]
[323545070,1714080654498,-500.0,0.00011506,2]
[323545071,1714080654508,-500.0,0.00011506,2]
[323545072,1714080654521,-500.0,0.00011506,2]
[323545073,1714080654530,-500.0,0.00011506,2]
[323545074,1714080654539,-1098.48,0.00011506,2]
[323545075,1714080654549,-500.0,0.00011506,2]
[323545076,1714080654558,-500.0,0.00011506,2]
[323545077,1714080654567,-500.0,0.00011506,2]
[323545078,1714080654576,-500.0,0.00011506,2]
[323545079,1714080654586,-625.46,0.00011506,2]
[323545080,1714080654596,-150.0,0.00011506,2]
[323545081,1714080654606,-500.0,0.00011506,2]
[323545082,1714080654615,-500.0,0.00011506,2]
[323545083,1714080654624,-500.0,0.00011506,2]
[323545084,1714080654633,-500.0,0.00011506,2]
[323545085,1714080654642,-500.0,0.00011506,2]
[323545086,1714080654652,-500.0,0.00011506,2]
[323545087,1714080654660,-500.0,0.00011506,2]
[323545088,1714080654670,-639.29214964,0.00011506,2]
[323545089,1714080654679,-500.0,0.00011506,2]
[323545090,1714080654689,-500.0,0.00011506,2]
[323545091,1714080654698,-557.05,0.00011506,2]
[323545092,1714080654707,-1315.36,0.00011506,2]
[323545093,1714080654716,-500.0,0.00011506,2]
[323545094,1714080654725,-500.0,0.00011506,2]
[323545095,1714080654735,-500.0,0.00011506,2]
[323545096,1714080654744,-500.0,0.00011506,2]
[323545097,1714080654754,-500.0,0.00011506,2]
[323545098,1714080654764,-287.16692669,0.00011506,2]
[323545099,1714080654773,-500.0,0.00011506,2]
[323545100,1714080654782,-500.0,0.00011506,2]
[323545101,1714080654792,-862.83,0.00011506,2]
[323545102,1714080654802,-500.0,0.00011506,2]
[323545103,1714080654811,-500.0,0.00011506,2]
[323545104,1714080654820,-718.25,0.00011506,2]
[323545105,1714080654829,-500.0,0.00011506,2]
[323545106,1714080654838,-500.0,0.00011506,2]
[323545107,1714080654847,-500.0,0.00011506,2]
[323545108,1714080654856,-500.0,0.00011506,2]
[323545109,1714080654867,-500.0,0.00011506,2]
[323545110,1714080654876,-500.0,0.00011506,2]
[323545111,1714080654885,-500.0,0.00011506,2]
[323545112,1714080654894,-500.0,0.00011506,2]
[323545113,1714080654903,-500.0,0.00011506,2]
[323545114,1714080654912,-500.0,0.00011506,2]
[323545115,1714080654921,-500.0,0.00011506,2]
[323545116,1714080655077,-500.0,0.00011506,2]
[323545117,1714080655086,-500.0,0.00011506,2]
[323545118,1714080655096,-500.0,0.00011506,2]
[323545119,1714080655105,-500.0,0.00011506,2]
[323545120,1714080655113,-482.43937793,0.00011506,2]
[323545121,1714080655122,-500.0,0.00011506,2]
[323545122,1714080655131,-500.0,0.00011506,2]
[323545123,1714080655141,-500.0,0.00011506,2]
[323545124,1714080655150,-543.08,0.00011506,2]
[323545125,1714080655159,-500.0,0.00011506,2]
[323545126,1714080655169,-527.37,0.00011506,2]
[323545127,1714080655178,-500.0,0.00011506,2]
[323545128,1714080655188,-500.0,0.00011506,2]
[323545129,1714080655198,-500.0,0.00011506,2]
[323545130,1714080655209,-500.0,0.00011506,2]
[323545131,1714080655218,-544.68,0.00011506,2]
[323545132,1714080655228,-500.0,0.00011506,2]
[323545133,1714080655237,-463.13704615,0.00011506,2]
[323545134,1714080655247,-3829.47,0.00011506,2]
[323545135,1714080655256,-500.0,0.00011506,2]
[323545136,1714080655265,-500.0,0.00011506,2]
[323545137,1714080655274,-500.0,0.00011506,2]
[323545138,1714080655283,-559.82,0.00011506,2]
[323545139,1714080655292,-769.83,0.00011506,2]
[323545140,1714080655302,-157.23368816,0.00011506,2]
[323545141,1714080655311,-500.0,0.00011506,2]
[323545142,1714080655320,-500.0,0.00011506,2]
[323545143,1714080655330,-21849.76,0.00011506,2]
[323545144,1714080655340,-500.0,0.00011506,2]
[323545145,1714080655349,-234.61252294,0.00011506,2]
[323545146,1714080655359,-500.0,0.00011506,2]
[323545147,1714080655368,-502.45,0.00011506,2]
[323545148,1714080655377,-765.12,0.00011506,2]
[323545149,1714080655386,-500.0,0.00011506,2]
[323545150,1714080655395,-500.0,0.00011506,2]
[323545151,1714080655404,-500.0,0.00011506,2]
[323545152,1714080655412,-292.7305669,0.00011506,2]
[323545153,1714080655421,-8090.07,0.00011506,2]
[323545154,1714080655431,-442.26612333,0.00011506,2]
[323545155,1714080655440,-500.0,0.00011506,2]
[323545156,1714080655450,-500.0,0.00011506,2]
[323545157,1714080655459,-500.0,0.00011506,2]